Departmental Area,Entity,Payment Date,Expense type,Expense Area,Supplier Name,Payment Reference,    Invoice Distribution Amount    ,Description,Supplier Type,Expenditure Type
UK Statistics Family,Office for National Statistics,01/04/2022,Exp - Short-Term Contract & Agency Staff - Full Cost,Business Change Support,Concept Information Technology Ltd T/A Concept Resourcing,225186,"3,088.91",Information Management Services,Large,Programme Expenditure
UK Statistics Family,Office for National Statistics,01/04/2022,Exp - Purchase Of Goods And Services Consultants,Business Architecture Transformation And Statistical Strategy,Concept Information Technology Ltd T/A Concept Resourcing,225186,"13,224.00",Information Management Services,Large,Programme Expenditure
UK Statistics Family,Office for National Statistics,01/04/2022,Exp - Short-Term Contract & Agency Staff - Full Cost,Public Sector And Households,Concept Information Technology Ltd T/A Concept Resourcing,225186,"14,502.65",Information Management Services,Large,Programme Expenditure
UK Statistics Family,Office for National Statistics,01/04/2022,Exp - Short-Term Contract & Agency Staff - Full Cost,Public Sector And Households,Concept Information Technology Ltd T/A Concept Resourcing,225186,"11,616.33",Information Management Services,Large,Programme Expenditure
UK Statistics Family,Office for National Statistics,01/04/2022,Exp - Short-Term Contract & Agency Staff - Full Cost,Data As A Service,Concept Information Technology Ltd T/A Concept Resourcing,225186,834.84,Information Management Services,Large,Programme Expenditure
UK Statistics Family,Office for National Statistics,01/04/2022,Accommodation & Building Management,Interview Management IPS,Heathrow Airport,225192,"60,166.03",Rental Charges,Large,Programme Expenditure
UK Statistics Family,Office for National Statistics,01/04/2022,Postage,Survey Processing Centre,DHL Parcel Ltd,225193,"28,289.99",Postage Services,Large,Programme Expenditure
UK Statistics Family,Office for National Statistics,01/04/2022,Exp - Purchase Of Goods/Services - Contractors,Digital Publishing,Certes Computing Ltd,225197,"50,055.07",Information Management Services,SME,Programme Expenditure
UK Statistics Family,Office for National Statistics,01/04/2022,Other Goods And Services,Crime Income And Wealth,Adzuna (Adhunter Ltd),225204,"86,805.00",Data Acquisition,Large,Programme Expenditure
UK Statistics Family,Office for National Statistics,01/04/2022,Exp - Purchase Of Goods/Services - Contractors,Data Science Campus,Methods Business & Digital Technology Ltd,225208,"80,437.50",Information Management Services,Large,Programme Expenditure
UK Statistics Family,Office for National Statistics,01/04/2022,Exp - Purchase Of Goods/Services - Incentive Payments,Covid Infection Survey,Sodexo Motivation Solutions U.K. ltd,225209,"174,265.31",Survey Response Incentive Vouchers,Large,Programme Expenditure
UK Statistics Family,Office for National Statistics,01/04/2022,Exp - Purchase Of Goods/Services - Contractors,Consultancy Management,Parity Resources Limited,225213,"3,600.00",Information Management Services,Large,Programme Expenditure
UK Statistics Family,Office for National Statistics,01/04/2022,Exp - Purchase Of Goods/Services - Contractors,Security Advisory,Parity Resources Limited,225213,"14,097.60",Information Management Services,Large,Programme Expenditure
UK Statistics Family,Office for National Statistics,01/04/2022,Exp - Purchase Of Goods/Services - Contractors,CLOUD ARCHITECTURE,Parity Resources Limited,225213,"3,430.50",Information Management Services,Large,Programme Expenditure
UK Statistics Family,Office for National Statistics,01/04/2022,Exp - Purchase Of Goods/Services - Contractors,Strategy And Architecture,Parity Resources Limited,225213,"6,736.80",Information Management Services,Large,Programme Expenditure
UK Statistics Family,Office for National Statistics,01/04/2022,Exp - Purchase Of Goods/Services - Contractors,IT Applications,Parity Resources Limited,225213,"12,338.82",Information Management Services,Large,Programme Expenditure
UK Statistics Family,Office for National Statistics,01/04/2022,Exp - Purchase Of Goods/Services - Contractors,IT Operations,Parity Resources Limited,225213,"13,609.44",Information Management Services,Large,Programme Expenditure
UK Statistics Family,Office for National Statistics,01/04/2022,Exp - Purchase Of Goods/Services - Contractors,Digital Delivery,Parity Resources Limited,225213,"2,346.30",Information Management Services,Large,Programme Expenditure
UK Statistics Family,Office for National Statistics,01/04/2022,Exp - Purchase Of Goods/Services - Contractors,GSS Strategy Delivery,Humankind Research,225216,47460,Data Acquisition,SME,Programme Expenditure
UK Statistics Family,Office for National Statistics,01/04/2022,Exp - Short-Term Contract & Agency Staff - Full Cost,GSS Strategy Delivery,Talent International,225225,7096.84,Information Management Services,SME,Programme Expenditure
UK Statistics Family,Office for National Statistics,01/04/2022,Exp - Purchase Of Goods/Services - Contractors,Testing,Talent International,225225,"8,100.00",Information Management Services,SME,Programme Expenditure
UK Statistics Family,Office for National Statistics,01/04/2022,Exp - Short-Term Contract & Agency Staff - Full Cost,Covid Infection Survey,Talent International,225225,"3,602.32",Information Management Services,SME,Programme Expenditure
UK Statistics Family,Office for National Statistics,01/04/2022,Exp - Purchase Of Goods/Services - Contractors,Covid Infection Survey,Talent International,225225,"13,000.00",Information Management Services,SME,Programme Expenditure
UK Statistics Family,Office for National Statistics,01/04/2022,Exp - Short-Term Contract & Agency Staff - Full Cost,WIDER SURVEILLANCE STUDIES,Talent International,225225,"2,669.92",Information Management Services,SME,Programme Expenditure
UK Statistics Family,Office for National Statistics,01/04/2022,Exp - Purchase Of Goods/Services - Contractors,Digital Publishing,Talent International,225225,"43,151.76",Information Management Services,SME,Programme Expenditure
UK Statistics Family,Office for National Statistics,01/04/2022,Exp - Short-Term Contract & Agency Staff - Full Cost,Strategy And Engagement,Talent International,225225,"7,132.59",Information Management Services,SME,Programme Expenditure
UK Statistics Family,Office for National Statistics,01/04/2022,Exp - Short-Term Contract & Agency Staff - Full Cost,STRATEGY SYNTHESIS AND CO-ORDINATION,Talent International,225225,"6,213.02",Information Management Services,SME,Programme Expenditure
UK Statistics Family,Office for National Statistics,01/04/2022,Exp - Short-Term Contract & Agency Staff - Full Cost,Recruitment ,Talent International,225225,"2,732.09",Information Management Services,SME,Programme Expenditure
UK Statistics Family,Office for National Statistics,01/04/2022,Exp - Purchase Of Goods/Services - Contractors,INTEGRATED DATA STRATEGY AND DELIVERY,Talent International,225225,13110,Information Management Services,SME,Programme Expenditure
UK Statistics Family,Office for National Statistics,01/04/2022,Exp - Purchase Of Goods/Services - Contractors,CLOUD ARCHITECTURE,Talent International,225225,"15,600.00",Information Management Services,SME,Programme Expenditure
UK Statistics Family,Office for National Statistics,01/04/2022,Exp - Purchase Of Goods/Services - Contractors,Strategy And Architecture,Talent International,225225,"14,280.00",Information Management Services,SME,Programme Expenditure
UK Statistics Family,Office for National Statistics,01/04/2022,Exp - Purchase Of Goods/Services - Contractors,Tech Delivery Legacy Sp,Talent International,225225,"34,776.00",Information Management Services,SME,Programme Expenditure
UK Statistics Family,Office for National Statistics,01/04/2022,Exp - Purchase Of Goods/Services - Contractors,IT Applications,Talent International,225225,"14,376.00",Information Management Services,SME,Programme Expenditure
UK Statistics Family,Office for National Statistics,01/04/2022,Exp - Purchase Of Goods/Services - Contractors,IT Operations,Talent International,225225,"17,976.00",Information Management Services,SME,Programme Expenditure
UK Statistics Family,Office for National Statistics,01/04/2022,Exp - Purchase Of Goods/Services - Contractors,IT Operations,Talent International,225225,"12,000.00",Information Management Services,SME,Programme Expenditure
UK Statistics Family,Office for National Statistics,01/04/2022,Exp - Purchase Of Goods/Services - Contractors,Digital Delivery,Talent International,225225,"17,976.00",Information Management Services,SME,Programme Expenditure
UK Statistics Family,Office for National Statistics,01/04/2022,Exp - Short-Term Contract & Agency Staff - Full Cost,Data Science Campus,Talent International,225225,"5,508.00",Information Management Services,SME,Programme Expenditure
UK Statistics Family,Office for National Statistics,01/04/2022,Exp - Purchase Of Goods/Services - Contractors,Data Science Campus,Talent International,225225,"16,800.00",Information Management Services,SME,Programme Expenditure
UK Statistics Family,Office for National Statistics,01/04/2022,Exp - Purchase Of Goods/Services - Contractors,Data As A Service,Talent International,225225,"16,200.00",Information Management Services,SME,Programme Expenditure
UK Statistics Family,Office for National Statistics,01/04/2022,Exp - Short-Term Contract & Agency Staff - Full Cost,Social Survey Transformation Titchfield,Talent International,225225,"4,528.80",Information Management Services,SME,Programme Expenditure
UK Statistics Family,Office for National Statistics,01/04/2022,EXP - PURCHASE OF GOODS/SERVICES -  NON IT CONTRACTUAL PAYMENTS,Covid Infection Survey,HH Associates Ltd,225235,"62,371.47",Print and Post Services,SME,Programme Expenditure
UK Statistics Family,Office for National Statistics,01/04/2022,Hosting,Crime Income And Wealth,Panlogic UK,225236,"30,291.60",Information Management Services,SME,Programme Expenditure
UK Statistics Family,Office for National Statistics,04/04/2022,Exp - Purchase Of Goods/Services - Contractors,Consultancy Management,Concept Information Technology Ltd T/A Concept Resourcing,225489,"17,165.78",Information Management Services,Large,Programme Expenditure
UK Statistics Family,Office for National Statistics,04/04/2022,Exp - Short-Term Contract & Agency Staff - Full Cost,Covid Infection Survey,Concept Information Technology Ltd T/A Concept Resourcing,225489,"3,432.12",Information Management Services,Large,Programme Expenditure
UK Statistics Family,Office for National Statistics,04/04/2022,Exp - Short-Term Contract & Agency Staff - Full Cost,Strategy And Engagement,Concept Information Technology Ltd T/A Concept Resourcing,225489,"1,472.57",Information Management Services,Large,Programme Expenditure
UK Statistics Family,Office for National Statistics,04/04/2022,Exp - Purchase Of Goods/Services - Contractors,CLOUD ARCHITECTURE,Concept Information Technology Ltd T/A Concept Resourcing,225489,"14,400.00",Information Management Services,Large,Programme Expenditure
UK Statistics Family,Office for National Statistics,04/04/2022,Exp - Purchase Of Goods/Services - IT Contractual Services,Tech Delivery Legacy Sp,Concept Information Technology Ltd T/A Concept Resourcing,225489,"12,240.00",Information Management Services,Large,Programme Expenditure
UK Statistics Family,Office for National Statistics,04/04/2022,Exp - Purchase Of Goods/Services - Contractors,Social Survey Transformation Titchfield,Concept Information Technology Ltd T/A Concept Resourcing,225489,"10,742.40",Information Management Services,Large,Programme Expenditure
UK Statistics Family,Office for National Statistics,04/04/2022,Exp - Short-Term Contract & Agency Staff - Full Cost,Corporations,Concept Information Technology Ltd T/A Concept Resourcing,225489,"2,659.60",Information Management Services,Large,Programme Expenditure
UK Statistics Family,Office for National Statistics,04/04/2022,End User Software And Hardware,IT Operations,Phoenix Software Ltd,225490,"94,750.80",Software Licenses,SME,Programme Expenditure
UK Statistics Family,Office for National Statistics,04/04/2022,Exp - Purchase Of Goods/Services - Contractors,2023 CENSUS DATA TRANSFORMATION,La International,225491,"4,668.35",Information Management Services,SME,Programme Expenditure
UK Statistics Family,Office for National Statistics,04/04/2022,Exp - Purchase Of Goods/Services - Contractors,Business Architecture,La International,225491,"4,491.18",Information Management Services,SME,Programme Expenditure
UK Statistics Family,Office for National Statistics,04/04/2022,Exp - Purchase Of Goods/Services - Contractors,Testing,La International,225491,"21,633.78",Information Management Services,SME,Programme Expenditure
UK Statistics Family,Office for National Statistics,04/04/2022,Exp - Purchase Of Goods/Services - Contractors,Testing,La International,225491,"4,194.00",Information Management Services,SME,Programme Expenditure
UK Statistics Family,Office for National Statistics,04/04/2022,Exp - Purchase Of Goods/Services - Contractors,Testing,La International,225491,"3,317.65",Information Management Services,SME,Programme Expenditure
UK Statistics Family,Office for National Statistics,04/04/2022,Exp - Purchase Of Goods/Services - Contractors,Consultancy Management,La International,225491,"3,588.30",Information Management Services,SME,Programme Expenditure
UK Statistics Family,Office for National Statistics,04/04/2022,Exp - Purchase Of Goods/Services - Contractors,Digital Publishing,La International,225491,"23,535.96",Information Management Services,SME,Programme Expenditure
UK Statistics Family,Office for National Statistics,04/04/2022,Exp - Purchase Of Goods/Services - Contractors,STRATEGY SYNTHESIS AND CO-ORDINATION,La International,225491,"2,525.52",Information Management Services,SME,Programme Expenditure
UK Statistics Family,Office for National Statistics,04/04/2022,Exp - Purchase Of Goods/Services - Contractors,ANALYTICAL ENGAGEMENT AND IMPACT,La International,225491,"3,450.00",Information Management Services,SME,Programme Expenditure
UK Statistics Family,Office for National Statistics,04/04/2022,Exp - Purchase Of Goods/Services - Contractors,Tech Delivery Legacy Sp,La International,225491,"4,701.18",Information Management Services,SME,Programme Expenditure
UK Statistics Family,Office for National Statistics,04/04/2022,Exp - Purchase Of Goods/Services - Contractors,IT Applications,La International,225491,"11,565.84",Information Management Services,SME,Programme Expenditure
UK Statistics Family,Office for National Statistics,04/04/2022,Exp - Purchase Of Goods/Services - Contractors,IT Operations,La International,225491,"2,170.08",Information Management Services,SME,Programme Expenditure
UK Statistics Family,Office for National Statistics,04/04/2022,Exp - Purchase Of Goods/Services - Contractors,Testing,Malikshaw Interim & Executive,225498,"13,566.00",Information Management Services,SME,Programme Expenditure
UK Statistics Family,Office for National Statistics,04/04/2022,Exp - Purchase Of Goods/Services - Contractors,ANALYTICAL ENGAGEMENT AND IMPACT,Malikshaw Interim & Executive,225498,"16,560.00",Information Management Services,SME,Programme Expenditure
UK Statistics Family,Office for National Statistics,04/04/2022,Exp - Purchase Of Goods/Services - Contractors,Social Surveys Division,Malikshaw Interim & Executive,225498,"9,777.60",Information Management Services,SME,Programme Expenditure
UK Statistics Family,Office for National Statistics,04/04/2022,EXP - PURCHASE OF GOODS/SERVICES -  NON IT CONTRACTUAL PAYMENTS,Data Collection Service,Serco Ltd,225499,"41,225.33",Census Contact Centre,Large,Programme Expenditure
UK Statistics Family,Office for National Statistics,04/04/2022,Hosting,CDIO UNGP,CTS (Cloud Technology Solutions Ltd),225500,"129,600.00",Information Management Services,Large,Programme Expenditure
UK Statistics Family,Office for National Statistics,04/04/2022,Hosting,Tech Delivery Legacy Sp,CTS (Cloud Technology Solutions Ltd),225500,"76,950.00",Information Management Services,Large,Programme Expenditure
UK Statistics Family,Office for National Statistics,05/04/2022,EXP - PURCHASE OF GOODS/SERVICES -  NON IT CONTRACTUAL PAYMENTS,Census & Soc Methodology Dd,University of Southampton,225512,"97,924.97",Training and Educational Services,SME,Programme Expenditure
UK Statistics Family,Office for National Statistics,05/04/2022,Exp - Purchase Of Goods/Services - Contractors,2023 CENSUS DATA TRANSFORMATION,Certes Computing Ltd,225521,"9,180.36",Information Management Services,SME,Programme Expenditure
UK Statistics Family,Office for National Statistics,05/04/2022,Exp - Purchase Of Goods/Services - Contractors,Consultancy Management,Certes Computing Ltd,225521,"11,106.82",Information Management Services,SME,Programme Expenditure
UK Statistics Family,Office for National Statistics,05/04/2022,Exp - Purchase Of Goods/Services - Contractors,Strategy And Architecture,Certes Computing Ltd,225521,16302.68,Information Management Services,SME,Programme Expenditure
UK Statistics Family,Office for National Statistics,05/04/2022,Fixtures & Fittings At Cost - Additions,Property Newport,Gresham Office Furniture Limited,225530,"64,609.92",Office Furniture,SME,Programme Expenditure
UK Statistics Family,Office for National Statistics,05/04/2022,Fixtures & Fittings At Cost - Additions,Property Titchfield,Gresham Office Furniture Limited,225530,"67,592.70",Office Furniture,SME,Programme Expenditure
UK Statistics Family,Office for National Statistics,05/04/2022,Telecoms,Tech Delivery Next Gen IT And Infrastructure,Freedom Communications (UK) Ltd,225533,"30,480.00",Telecommunications,Large,Programme Expenditure
UK Statistics Family,Office for National Statistics,05/04/2022,IT (Owned) At Cost - Additions,CLOUD ARCHITECTURE,denodo,225537,"78,552.90",Software Licenses,SME,Programme Expenditure
UK Statistics Family,Office for National Statistics,05/04/2022,Fixtures & Fittings At Cost - Additions,Property Newport,Orange box Limited,225538,"167,412.56",Office Furniture,SME,Programme Expenditure
UK Statistics Family,Office for National Statistics,05/04/2022,Fixtures & Fittings At Cost - Additions,Property Titchfield,Orange box Limited,225538,"67,185.95",Office Furniture,SME,Programme Expenditure
UK Statistics Family,Office for National Statistics,05/04/2022,Exp - Purchase Of Goods/Services - Contractors,Digital Publishing,Parity Resources Limited,225539,"16,054.92",Information Management Services,Large,Programme Expenditure
UK Statistics Family,Office for National Statistics,05/04/2022,Exp - Short-Term Contract & Agency Staff - Full Cost,Business Architecture Transformation And Statistical Strategy,Parity Resources Limited,225539,"22,511.40",Information Management Services,Large,Programme Expenditure
UK Statistics Family,Office for National Statistics,05/04/2022,Exp - Short-Term Contract & Agency Staff - Full Cost,Business Architecture Transformation And Statistical Strategy,Parity Resources Limited,225539,"6,949.48",Information Management Services,Large,Programme Expenditure
UK Statistics Family,Office for National Statistics,05/04/2022,Exp - Purchase Of Goods/Services - Contractors,Strategy And Architecture,Parity Resources Limited,225539,2704.19,Information Management Services,Large,Programme Expenditure
UK Statistics Family,Office for National Statistics,05/04/2022,Exp - Purchase Of Goods/Services - IT Contractual Services,CDIO UNGP,Digital Modus Ltd,225542,"446,250.00",Information Management Services,SME,Programme Expenditure
UK Statistics Family,Office for National Statistics,05/04/2022,Exp - Purchase Of Goods/Services - Contractors,IT Applications,Talent International,225543,"15,600.00",Information Management Services,SME,Programme Expenditure
UK Statistics Family,Office for National Statistics,05/04/2022,Exp - Purchase Of Goods/Services - Contractors,IT Operations,Talent International,225543,"15,600.00",Information Management Services,SME,Programme Expenditure
UK Statistics Family,Office for National Statistics,06/04/2022,Exp - Purchase Of Goods/Services - Contractors,Digital Publishing,Concept Information Technology Ltd T/A Concept Resourcing,225547,"14,330.88",Information Management Services,Large,Programme Expenditure
UK Statistics Family,Office for National Statistics,06/04/2022,Exp - Short-Term Contract & Agency Staff - Full Cost,N A Coordination,Concept Information Technology Ltd T/A Concept Resourcing,225547,"3,912.61",Information Management Services,Large,Programme Expenditure
UK Statistics Family,Office for National Statistics,06/04/2022,Exp - Short-Term Contract & Agency Staff - Full Cost,"SUB-NATIONAL STATISTICS AND ANALYSIS
Account	
AccountAutocompletes on TAB	",Concept Information Technology Ltd T/A Concept Resourcing,225547,"3,088.91",Information Management Services,Large,Programme Expenditure
UK Statistics Family,Office for National Statistics,06/04/2022,Exp - Short-Term Contract & Agency Staff - Full Cost,"SUB-NATIONAL STATISTICS AND ANALYSIS
Account	
AccountAutocompletes on TAB	",Concept Information Technology Ltd T/A Concept Resourcing,225547,"4,835.74",Information Management Services,Large,Programme Expenditure
UK Statistics Family,Office for National Statistics,06/04/2022,Exp - Purchase Of Goods/Services - Contractors,Census & Soc Methodology Dd,Concept Information Technology Ltd T/A Concept Resourcing,225547,"6,270.43",Information Management Services,Large,Programme Expenditure
UK Statistics Family,Office for National Statistics,06/04/2022,Exp - Short-Term Contract & Agency Staff - Full Cost,Public Sector And Households,Concept Information Technology Ltd T/A Concept Resourcing,225547,11952.12,Information Management Services,Large,Programme Expenditure
UK Statistics Family,Office for National Statistics,06/04/2022,Exp - Short-Term Contract & Agency Staff - Full Cost,Prices Division,Concept Information Technology Ltd T/A Concept Resourcing,225547,"2,059.27",Information Management Services,Large,Programme Expenditure
UK Statistics Family,Office for National Statistics,06/04/2022,Exp - Short-Term Contract & Agency Staff - Full Cost,Business Outputs And Developments,Concept Information Technology Ltd T/A Concept Resourcing,225547,"4,015.58",Information Management Services,Large,Programme Expenditure
UK Statistics Family,Office for National Statistics,06/04/2022,Exp - Short-Term Contract & Agency Staff - Full Cost,Labour Market,Concept Information Technology Ltd T/A Concept Resourcing,225547,"4,118.54",Information Management Services,Large,Programme Expenditure
UK Statistics Family,Office for National Statistics,06/04/2022,Exp - Short-Term Contract & Agency Staff - Full Cost,Labour Market,Concept Information Technology Ltd T/A Concept Resourcing,225547,"5,447.40",Information Management Services,Large,Programme Expenditure
UK Statistics Family,Office for National Statistics,06/04/2022,Exp - Purchase Of Goods/Services - IT Contractual Services,Digital Publishing,University of Durham,225548,"68,697.60",Statistical Services,Large,Programme Expenditure
UK Statistics Family,Office for National Statistics,06/04/2022,Travel And Subsistence,Corporate Centre,Corporate Travel Management ,225550,36518.52,Travel and Accommodation,SME,Programme Expenditure
UK Statistics Family,Office for National Statistics,06/04/2022,Exp - Purchase Of Goods/Services - Contractors,Digital Publishing,Certes Computing Ltd,225556,"16,558.34",Information Management Services,SME,Programme Expenditure
UK Statistics Family,Office for National Statistics,06/04/2022,Exp - Purchase Of Goods/Services - Contractors,Tech Delivery Data As A Platform,Certes Computing Ltd,225556,"14,938.51",Information Management Services,SME,Programme Expenditure
UK Statistics Family,Office for National Statistics,06/04/2022,Exp - Purchase Of Goods/Services - Contractors,Digital Delivery,Certes Computing Ltd,225556,"19,151.09",Information Management Services,SME,Programme Expenditure
UK Statistics Family,Office for National Statistics,06/04/2022,"ICT Outsourcing, Maintenance And Support",IT Operations,Computacenter (Uk) Limited,225559,"3,338.82",Software Licenses,Large,Programme Expenditure
UK Statistics Family,Office for National Statistics,06/04/2022,End User Software And Hardware,IT Operations,Computacenter (Uk) Limited,225559,"78,460.12",Software Licenses,Large,Programme Expenditure
UK Statistics Family,Office for National Statistics,06/04/2022,Hospitality,Property Services,BaxterStorey,225560,"26,426.51",Catering Services,Large,Programme Expenditure
UK Statistics Family,Office for National Statistics,06/04/2022,Exp - Purchase Of Goods/Services - Contractors,Programme Delivery,Malikshaw Interim & Executive,225561,"15,042.44",Information Management Services,SME,Programme Expenditure
UK Statistics Family,Office for National Statistics,06/04/2022,Exp - Short-Term Contract & Agency Staff - Full Cost,Covid Infection Survey,Malikshaw Interim & Executive,225561,5.65,Information Management Services,SME,Programme Expenditure
UK Statistics Family,Office for National Statistics,06/04/2022,Exp - Short-Term Contract & Agency Staff - Full Cost,WIDER SURVEILLANCE STUDIES,Malikshaw Interim & Executive,225561,"3,206.57",Information Management Services,SME,Programme Expenditure
UK Statistics Family,Office for National Statistics,06/04/2022,Exp - Short-Term Contract & Agency Staff - Full Cost,Strategy And Engagement,Malikshaw Interim & Executive,225561,"5,030.44",Information Management Services,SME,Programme Expenditure
UK Statistics Family,Office for National Statistics,06/04/2022,Exp - Short-Term Contract & Agency Staff - Full Cost,Finance,Malikshaw Interim & Executive,225561,"6,243.61",Information Management Services,SME,Programme Expenditure
UK Statistics Family,Office for National Statistics,06/04/2022,Exp - Purchase Of Goods/Services - Contractors,INTEGRATED DATA STRATEGY AND DELIVERY,Malikshaw Interim & Executive,225561,"15,814.25",Information Management Services,SME,Programme Expenditure
UK Statistics Family,Office for National Statistics,06/04/2022,Exp - Short-Term Contract & Agency Staff - Full Cost,Data Architecture,Malikshaw Interim & Executive,225561,"1,346.65",Information Management Services,SME,Programme Expenditure
UK Statistics Family,Office for National Statistics,06/04/2022,Exp - Purchase Of Goods/Services - Contractors,Strategy And Architecture,Malikshaw Interim & Executive,225561,"16,320.00",Information Management Services,SME,Programme Expenditure
UK Statistics Family,Office for National Statistics,06/04/2022,End User Software And Hardware,IT Operations,Actian Europe Limited,225566,"1,112,553.60",Software Licenses,SME,Programme Expenditure
UK Statistics Family,Office for National Statistics,06/04/2022,Exp - Purchase Of Goods/Services - IT Contractual Services,IT Applications,Diegesis Limited,225571,"188,790.00",Information Management Services,Large,Programme Expenditure
UK Statistics Family,Office for National Statistics,06/04/2022,Exp - Purchase Of Goods/Services - Contractors,Crime Statistics,University of Bristol,225572,"44,710.14",Statistical Services,SME,Programme Expenditure
UK Statistics Family,Office for National Statistics,06/04/2022,Exp - Purchase Of Goods/Services - Incentive Payments,Survey Management,Sodexo Motivation Solutions U.K. ltd,225573,"1,088.07",Survey Response Incentive Vouchers,Large,Programme Expenditure
UK Statistics Family,Office for National Statistics,06/04/2022,Exp - Purchase Of Goods/Services - Incentive Payments,GSS Strategy Delivery,Sodexo Motivation Solutions U.K. ltd,225573,177.65,Survey Response Incentive Vouchers,Large,Programme Expenditure
UK Statistics Family,Office for National Statistics,06/04/2022,Exp - Purchase Of Goods/Services - Incentive Payments,Strategy And Engagement,Sodexo Motivation Solutions U.K. ltd,225573,"29,885.23",Survey Response Incentive Vouchers,Large,Programme Expenditure
UK Statistics Family,Office for National Statistics,06/04/2022,Exp - Purchase Of Goods/Services - Contractors,Testing,Parity Resources Limited,225577,"9,538.88",Information Management Services,Large,Programme Expenditure
UK Statistics Family,Office for National Statistics,06/04/2022,Exp - Purchase Of Goods/Services - Contractors,Covid Infection Survey,Parity Resources Limited,225577,"2,694.42",Information Management Services,Large,Programme Expenditure
UK Statistics Family,Office for National Statistics,06/04/2022,Exp - Purchase Of Goods/Services - Contractors,Researcher Support And Data Access ,Parity Resources Limited,225577,"15,480.00",Information Management Services,Large,Programme Expenditure
UK Statistics Family,Office for National Statistics,06/04/2022,Exp - Purchase Of Goods/Services - Contractors,Security Advisory,Parity Resources Limited,225577,"10,509.12",Information Management Services,Large,Programme Expenditure
UK Statistics Family,Office for National Statistics,06/04/2022,Exp - Purchase Of Goods/Services - Contractors,CLOUD ARCHITECTURE,Parity Resources Limited,225577,"3,430.50",Information Management Services,Large,Programme Expenditure
UK Statistics Family,Office for National Statistics,06/04/2022,Exp - Purchase Of Goods/Services - Contractors,Strategy And Architecture,Parity Resources Limited,225577,"4,499.94",Information Management Services,Large,Programme Expenditure
UK Statistics Family,Office for National Statistics,06/04/2022,Exp - Purchase Of Goods/Services - Contractors,Strategy And Architecture,Parity Resources Limited,225577,"4,210.50",Information Management Services,Large,Programme Expenditure
UK Statistics Family,Office for National Statistics,06/04/2022,Exp - Purchase Of Goods/Services - Contractors,IT Applications,Parity Resources Limited,225577,"7,436.70",Information Management Services,Large,Programme Expenditure
UK Statistics Family,Office for National Statistics,06/04/2022,Exp - Purchase Of Goods/Services - Contractors,IT Operations,Parity Resources Limited,225577,"14,160.72",Information Management Services,Large,Programme Expenditure
UK Statistics Family,Office for National Statistics,06/04/2022,Exp - Purchase Of Goods/Services - Contractors,Digital Delivery,Parity Resources Limited,225577,"2,346.30",Information Management Services,Large,Programme Expenditure
UK Statistics Family,Office for National Statistics,06/04/2022,Exp - Purchase Of Goods/Services - Contractors,Data Science Campus,Parity Resources Limited,225577,"9,931.50",Information Management Services,Large,Programme Expenditure
UK Statistics Family,Office for National Statistics,06/04/2022,Exp - Purchase Of Goods/Services - Contractors,Digital Publishing,Talent International,225585,"55,724.80",Information Management Services,SME,Programme Expenditure
UK Statistics Family,Office for National Statistics,06/04/2022,Exp - Short-Term Contract & Agency Staff - Full Cost,Strategy And Engagement,Talent International,225585,"4,322.78",Information Management Services,SME,Programme Expenditure
UK Statistics Family,Office for National Statistics,06/04/2022,Exp - Purchase Of Goods And Services Consultants,Business Architecture Transformation And Statistical Strategy,Talent International,225585,"37,440.00",Information Management Services,SME,Programme Expenditure
UK Statistics Family,Office for National Statistics,06/04/2022,Exp - Short-Term Contract & Agency Staff - Full Cost,Best Practice And Impact,Talent International,225585,"3,577.98",Information Management Services,SME,Programme Expenditure
UK Statistics Family,Office for National Statistics,06/04/2022,Exp - Short-Term Contract & Agency Staff - Full Cost,Census & Soc Methodology Dd,Talent International,225585,"5,434.56",Information Management Services,SME,Programme Expenditure
UK Statistics Family,Office for National Statistics,06/04/2022,Exp - Purchase Of Goods And Services Consultants,Divisional Management,McCann Erickson Central Ltd,225586,"119,998.80",Consultancy,SME,Programme Expenditure
UK Statistics Family,Office for National Statistics,07/04/2022,"ICT Outsourcing, Maintenance And Support",IT Operations,Microsoft Limited,225890,"229,200.00",Information Management Services,Large,Programme Expenditure
UK Statistics Family,Office for National Statistics,07/04/2022,Other Goods And Services,WIDER SURVEILLANCE STUDIES,London School of Hygiene & Tropical Medicine,225892,"144,422.00",Statistical Services,Large,Programme Expenditure
UK Statistics Family,Office for National Statistics,07/04/2022,Exp - Short-Term Contract & Agency Staff - Full Cost,Business Change Support,Concept Information Technology Ltd T/A Concept Resourcing,225893,"3,088.91",Information Management Services,Large,Programme Expenditure
UK Statistics Family,Office for National Statistics,07/04/2022,Exp - Short-Term Contract & Agency Staff - Full Cost,Business Change Support,Concept Information Technology Ltd T/A Concept Resourcing,225893,"3,136.42",Information Management Services,Large,Programme Expenditure
UK Statistics Family,Office for National Statistics,07/04/2022,Exp - Short-Term Contract & Agency Staff - Full Cost,Business Change Support,Concept Information Technology Ltd T/A Concept Resourcing,225893,"7,207.45",Information Management Services,Large,Programme Expenditure
UK Statistics Family,Office for National Statistics,07/04/2022,Exp - Short-Term Contract & Agency Staff - Full Cost,Business Change Support,Concept Information Technology Ltd T/A Concept Resourcing,225893,"4,942.25",Information Management Services,Large,Programme Expenditure
UK Statistics Family,Office for National Statistics,07/04/2022,Exp - Short-Term Contract & Agency Staff - Full Cost,Business Change Support,Concept Information Technology Ltd T/A Concept Resourcing,225893,"8,223.18",Information Management Services,Large,Programme Expenditure
UK Statistics Family,Office for National Statistics,07/04/2022,Exp - Short-Term Contract & Agency Staff - Full Cost,Business Change Support,Concept Information Technology Ltd T/A Concept Resourcing,225893,"3,706.69",Information Management Services,Large,Programme Expenditure
UK Statistics Family,Office for National Statistics,07/04/2022,Exp - Short-Term Contract & Agency Staff - Full Cost,Business Change Support,Concept Information Technology Ltd T/A Concept Resourcing,225893,"5,303.30",Information Management Services,Large,Programme Expenditure
UK Statistics Family,Office for National Statistics,07/04/2022,Exp - Short-Term Contract & Agency Staff - Full Cost,Business Change Support,Concept Information Technology Ltd T/A Concept Resourcing,225893,"5,963.43",Information Management Services,Large,Programme Expenditure
UK Statistics Family,Office for National Statistics,07/04/2022,Exp - Short-Term Contract & Agency Staff - Full Cost,International Trade And Transactions,Concept Information Technology Ltd T/A Concept Resourcing,225893,"1,029.64",Information Management Services,Large,Programme Expenditure
UK Statistics Family,Office for National Statistics,07/04/2022,Exp - Short-Term Contract & Agency Staff - Full Cost,International Trade And Transactions,Concept Information Technology Ltd T/A Concept Resourcing,225893,"3,136.42",Information Management Services,Large,Programme Expenditure
UK Statistics Family,Office for National Statistics,07/04/2022,Exp - Short-Term Contract & Agency Staff - Full Cost,International Trade And Transactions,Concept Information Technology Ltd T/A Concept Resourcing,225893,"29,878.48",Information Management Services,Large,Programme Expenditure
UK Statistics Family,Office for National Statistics,07/04/2022,Exp - Short-Term Contract & Agency Staff - Full Cost,Business Architecture Transformation And Statistical Strategy,Concept Information Technology Ltd T/A Concept Resourcing,225893,"4,341.17",Information Management Services,Large,Programme Expenditure
UK Statistics Family,Office for National Statistics,07/04/2022,Exp - Short-Term Contract & Agency Staff - Full Cost,Business Architecture Transformation And Statistical Strategy,Concept Information Technology Ltd T/A Concept Resourcing,225893,"16,113.60",Information Management Services,Large,Programme Expenditure
UK Statistics Family,Office for National Statistics,07/04/2022,Exp - Short-Term Contract & Agency Staff - Full Cost,Business Architecture Transformation And Statistical Strategy,Concept Information Technology Ltd T/A Concept Resourcing,225893,"3,088.91",Information Management Services,Large,Programme Expenditure
UK Statistics Family,Office for National Statistics,07/04/2022,Exp - Short-Term Contract & Agency Staff - Full Cost,Public Sector And Households,Concept Information Technology Ltd T/A Concept Resourcing,225893,"3,136.42",Information Management Services,Large,Programme Expenditure
UK Statistics Family,Office for National Statistics,07/04/2022,Exp - Short-Term Contract & Agency Staff - Full Cost,Public Sector And Households,Concept Information Technology Ltd T/A Concept Resourcing,225893,"2,743.68",Information Management Services,Large,Programme Expenditure
UK Statistics Family,Office for National Statistics,07/04/2022,Exp - Short-Term Contract & Agency Staff - Full Cost,Business Statistics Transformation,Concept Information Technology Ltd T/A Concept Resourcing,225893,"4,887.82",Information Management Services,Large,Programme Expenditure
UK Statistics Family,Office for National Statistics,07/04/2022,Exp - Short-Term Contract & Agency Staff - Full Cost,Prices Division,Concept Information Technology Ltd T/A Concept Resourcing,225893,"6,084.58",Information Management Services,Large,Programme Expenditure
UK Statistics Family,Office for National Statistics,07/04/2022,Exp - Short-Term Contract & Agency Staff - Full Cost,Prices Division,Concept Information Technology Ltd T/A Concept Resourcing,225893,"11,535.52",Information Management Services,Large,Programme Expenditure
UK Statistics Family,Office for National Statistics,07/04/2022,Exp - Short-Term Contract & Agency Staff - Full Cost,Prices Division,Concept Information Technology Ltd T/A Concept Resourcing,225893,"23,433.32",Information Management Services,Large,Programme Expenditure
UK Statistics Family,Office for National Statistics,07/04/2022,Exp - Purchase Of Goods And Services Consultants,Digital Media,Methods Business & Digital Technology Ltd,225899,"44,760.00",Information Management Services,Large,Programme Expenditure
UK Statistics Family,Office for National Statistics,07/04/2022,Software Licences At Cost - Additions,IT Operations,Computacenter (Uk) Limited,225905,"36,000.00",Software Licenses,Large,Programme Expenditure
UK Statistics Family,Office for National Statistics,07/04/2022,"ICT Outsourcing, Maintenance And Support",IT Operations,Computacenter (Uk) Limited,225905,"73,875.65",Software Licenses,Large,Programme Expenditure
UK Statistics Family,Office for National Statistics,07/04/2022,End User Software And Hardware,IT Operations,Computacenter (Uk) Limited,225905,"37,531.51",Software Licenses,Large,Programme Expenditure
UK Statistics Family,Office for National Statistics,07/04/2022,Exp - Short-Term Contract & Agency Staff - Full Cost,Business Architecture Transformation And Statistical Strategy,Malikshaw Interim & Executive,225908,"5,627.33",Information Management Services,SME,Programme Expenditure
UK Statistics Family,Office for National Statistics,07/04/2022,Exp - Purchase Of Goods/Services - Contractors,Strategy And Architecture,Malikshaw Interim & Executive,225908,"23,460.00",Information Management Services,SME,Programme Expenditure
UK Statistics Family,Office for National Statistics,07/04/2022,Exp - Purchase Of Goods/Services - Contractors,IT Operations,Malikshaw Interim & Executive,225908,"21,472.80",Information Management Services,SME,Programme Expenditure
UK Statistics Family,Office for National Statistics,07/04/2022,Exp - Purchase Of Goods/Services - Contractors,IT Operations,Malikshaw Interim & Executive,225908,"20,092.80",Information Management Services,SME,Programme Expenditure
UK Statistics Family,Office for National Statistics,07/04/2022,Exp - Purchase Of Goods/Services - Contractors,Digital Delivery,Malikshaw Interim & Executive,225908,"17,884.80",Information Management Services,SME,Programme Expenditure
UK Statistics Family,Office for National Statistics,07/04/2022,End User Software And Hardware,CLOUD ARCHITECTURE,CTS (Cloud Technology Solutions Ltd),225910,"135,360.00",Information Management Services,Large,Programme Expenditure
UK Statistics Family,Office for National Statistics,07/04/2022,Exp - Purchase Of Goods And Services Consultants,Digital Media,Methods Business & Digital Technology Ltd,225912,"657,294.85",Information Management Services,Large,Programme Expenditure
UK Statistics Family,Office for National Statistics,07/04/2022,Other Goods And Services,Survey Management,REad Group,225915,"5,699.68",Data Acquisition,Large,Programme Expenditure
UK Statistics Family,Office for National Statistics,07/04/2022,Surveys,SOCIAL SURVEY DATA PROCESSING,REad Group,225915,"29,372.11",Data Acquisition,Large,Programme Expenditure
UK Statistics Family,Office for National Statistics,07/04/2022,Exp - Short-Term Contract & Agency Staff - Full Cost,Business Architecture Transformation And Statistical Strategy,SmartSourcing Ltd,225916,"34,523.14",Information Management Services,SME,Programme Expenditure
UK Statistics Family,Office for National Statistics,07/04/2022,Exp - Purchase Of Goods/Services - IT Contractual Services,Digital Delivery,Armakuni Ltd,225917,"48,180.00",Information Management Services,SME,Programme Expenditure
UK Statistics Family,Office for National Statistics,07/04/2022,Exp - Short-Term Contract & Agency Staff - Full Cost,Business Change Support,Talent International,225924,"9,600.00",Information Management Services,SME,Programme Expenditure
UK Statistics Family,Office for National Statistics,07/04/2022,Exp - Short-Term Contract & Agency Staff - Full Cost,Data Architecture,Talent International,225924,"8,989.57",Information Management Services,SME,Programme Expenditure
UK Statistics Family,Office for National Statistics,07/04/2022,Exp - Purchase Of Goods/Services - Contractors,Data Architecture,Talent International,225924,"17,976.00",Information Management Services,SME,Programme Expenditure
UK Statistics Family,Office for National Statistics,07/04/2022,Exp - Purchase Of Goods/Services - Contractors,CLOUD ARCHITECTURE,Talent International,225924,"17,976.00",Information Management Services,SME,Programme Expenditure
UK Statistics Family,Office for National Statistics,07/04/2022,Exp - Purchase Of Goods/Services - Contractors,Digital Delivery,Talent International,225924,"12,096.00",Information Management Services,SME,Programme Expenditure
UK Statistics Family,Office for National Statistics,08/04/2022,Exp - Purchase Of Goods/Services - Contractors,Testing,Certes Computing Ltd,225930,"13,763.52",Information Management Services,SME,Programme Expenditure
UK Statistics Family,Office for National Statistics,08/04/2022,Exp - Purchase Of Goods/Services - Contractors,Digital Publishing,Certes Computing Ltd,225930,"7,686.00",Information Management Services,SME,Programme Expenditure
UK Statistics Family,Office for National Statistics,08/04/2022,Exp - Purchase Of Goods/Services - Contractors,CLOUD ARCHITECTURE,Certes Computing Ltd,225930,"13,834.80",Information Management Services,SME,Programme Expenditure
UK Statistics Family,Office for National Statistics,08/04/2022,Exp - Purchase Of Goods/Services - Contractors,Tech Delivery Legacy Sp,Certes Computing Ltd,225930,"8,400.00",Information Management Services,SME,Programme Expenditure
UK Statistics Family,Office for National Statistics,08/04/2022,Exp - Purchase Of Goods/Services - Contractors,Tech Delivery Next Gen IT And Infrastructure,Certes Computing Ltd,225930,"18,240.00",Information Management Services,SME,Programme Expenditure
UK Statistics Family,Office for National Statistics,08/04/2022,Exp - Purchase Of Goods/Services - Contractors,Testing,Malikshaw Interim & Executive,225932,"2,856.00",Information Management Services,SME,Programme Expenditure
UK Statistics Family,Office for National Statistics,08/04/2022,Exp - Purchase Of Goods/Services - Contractors,Data Science Campus,Malikshaw Interim & Executive,225932,"34,944.00",Information Management Services,SME,Programme Expenditure
UK Statistics Family,Office for National Statistics,08/04/2022,Exp - Purchase Of Goods/Services - IT Contractual Services,Digital Publishing,Methods Business & Digital Technology Ltd,225935,"604,777.53",Information Management Services,Large,Programme Expenditure
UK Statistics Family,Office for National Statistics,08/04/2022,Exp - Purchase Of Goods/Services - IT Contractual Services,Digital Delivery,Methods Business & Digital Technology Ltd,225935,"15,870.00",Information Management Services,Large,Programme Expenditure
UK Statistics Family,Office for National Statistics,08/04/2022,Exp - Purchase Of Goods/Services - Incentive Payments,Covid Infection Survey,Sodexo Motivation Solutions U.K. ltd,225936,"187,067.80",Survey Response Incentive Vouchers,Large,Programme Expenditure
UK Statistics Family,Office for National Statistics,08/04/2022,Exp - Purchase Of Goods/Services - Contractors,Business Architecture,LA FOSSE ASSOCIATES LIMITED,225937,"20,820.00",Information Management Services,Large,Programme Expenditure
UK Statistics Family,Office for National Statistics,08/04/2022,Exp - Purchase Of Goods/Services - Contractors,Business Architecture,LA FOSSE ASSOCIATES LIMITED,225937,"10,440.00",Information Management Services,Large,Programme Expenditure
UK Statistics Family,Office for National Statistics,08/04/2022,Exp - Purchase Of Goods/Services - Contractors,Consultancy Management,LA FOSSE ASSOCIATES LIMITED,225937,"48,366.00",Information Management Services,Large,Programme Expenditure
UK Statistics Family,Office for National Statistics,08/04/2022,Exp - Purchase Of Goods/Services - Contractors,Consultancy Management,LA FOSSE ASSOCIATES LIMITED,225937,"5,460.00",Information Management Services,Large,Programme Expenditure
UK Statistics Family,Office for National Statistics,08/04/2022,Exp - Purchase Of Goods/Services - Contractors,Consultancy Management,LA FOSSE ASSOCIATES LIMITED,225937,"14,400.00",Information Management Services,Large,Programme Expenditure
UK Statistics Family,Office for National Statistics,08/04/2022,Exp - Purchase Of Goods/Services - Contractors,WIDER SURVEILLANCE STUDIES,LA FOSSE ASSOCIATES LIMITED,225937,"13,200.00",Information Management Services,Large,Programme Expenditure
UK Statistics Family,Office for National Statistics,08/04/2022,Exp - Purchase Of Goods/Services - Contractors,Digital Publishing,LA FOSSE ASSOCIATES LIMITED,225937,"17,250.00",Information Management Services,Large,Programme Expenditure
UK Statistics Family,Office for National Statistics,08/04/2022,Exp - Purchase Of Goods/Services - Contractors,Digital Publishing,LA FOSSE ASSOCIATES LIMITED,225937,"17,280.00",Information Management Services,Large,Programme Expenditure
UK Statistics Family,Office for National Statistics,08/04/2022,Exp - Purchase Of Goods/Services - Contractors,Tech Delivery Legacy Sp,LA FOSSE ASSOCIATES LIMITED,225937,"17,100.00",Information Management Services,Large,Programme Expenditure
UK Statistics Family,Office for National Statistics,08/04/2022,Telecoms,IT Operations,Cdw Limited,225939,237.6,Software Licenses,Large,Programme Expenditure
UK Statistics Family,Office for National Statistics,08/04/2022,End User Software And Hardware,IT Operations,Cdw Limited,225939,"101,890.80",Software Licenses,Large,Programme Expenditure
UK Statistics Family,Office for National Statistics,08/04/2022,"ICT Outsourcing, Maintenance And Support",IT Operations,Oracle Corporation UK Ltd,225948,"1,227,666.52",Information Management Services,Large,Programme Expenditure
UK Statistics Family,Office for National Statistics,11/04/2022,End User Software And Hardware,IT Operations,Esri (Uk) Ltd,226099,"420,000.00",Software Licenses,SME,Programme Expenditure
UK Statistics Family,Office for National Statistics,11/04/2022,Surveys,Social Surveys Division,Nisra,226100,"247,975.90",Statistical Services,Large,Programme Expenditure
UK Statistics Family,Office for National Statistics,11/04/2022,Exp - Purchase Of Goods/Services - Contractors,Business Architecture,Certes Computing Ltd,226101,"20,992.94",Information Management Services,SME,Programme Expenditure
UK Statistics Family,Office for National Statistics,11/04/2022,Exp - Purchase Of Goods/Services - Contractors,Testing,Certes Computing Ltd,226101,"15,025.99",Information Management Services,SME,Programme Expenditure
UK Statistics Family,Office for National Statistics,11/04/2022,Exp - Purchase Of Goods/Services - Contractors,Digital Publishing,Certes Computing Ltd,226101,"7,686.00",Information Management Services,SME,Programme Expenditure
UK Statistics Family,Office for National Statistics,11/04/2022,Exp - Purchase Of Goods/Services - Contractors,Security Advisory,Certes Computing Ltd,226101,"19,151.09",Information Management Services,SME,Programme Expenditure
UK Statistics Family,Office for National Statistics,11/04/2022,Exp - Purchase Of Goods/Services - Contractors,Security Advisory,Certes Computing Ltd,226101,"15,264.70",Information Management Services,SME,Programme Expenditure
UK Statistics Family,Office for National Statistics,11/04/2022,Exp - Purchase Of Goods/Services - Contractors,Strategy And Architecture,Certes Computing Ltd,226101,"12,297.60",Information Management Services,SME,Programme Expenditure
UK Statistics Family,Office for National Statistics,11/04/2022,Exp - Purchase Of Goods/Services - Contractors,Digital Delivery,Certes Computing Ltd,226101,"66,259.98",Information Management Services,SME,Programme Expenditure
UK Statistics Family,Office for National Statistics,11/04/2022,Exp - Purchase Of Goods/Services - Contractors,Business Architecture,La International,226102,5154.71,Information Management Services,SME,Programme Expenditure
UK Statistics Family,Office for National Statistics,11/04/2022,Exp - Purchase Of Goods/Services - Contractors,Testing,La International,226102,"5,616.22",Information Management Services,SME,Programme Expenditure
UK Statistics Family,Office for National Statistics,11/04/2022,Exp - Purchase Of Goods/Services - Contractors,Testing,La International,226102,"4,194.00",Information Management Services,SME,Programme Expenditure
UK Statistics Family,Office for National Statistics,11/04/2022,Exp - Purchase Of Goods/Services - Contractors,Testing,La International,226102,"2,654.12",Information Management Services,SME,Programme Expenditure
UK Statistics Family,Office for National Statistics,11/04/2022,Exp - Purchase Of Goods/Services - Contractors,Testing,La International,226102,663.53,Information Management Services,SME,Programme Expenditure
UK Statistics Family,Office for National Statistics,11/04/2022,Exp - Purchase Of Goods/Services - Contractors,Consultancy Management,La International,226102,"2,870.64",Information Management Services,SME,Programme Expenditure
UK Statistics Family,Office for National Statistics,11/04/2022,Exp - Purchase Of Goods/Services - Contractors,Consultancy Management,La International,226102,717.66,Information Management Services,SME,Programme Expenditure
UK Statistics Family,Office for National Statistics,11/04/2022,Exp - Purchase Of Goods/Services - Contractors,Digital Publishing,La International,226102,"27,811.29",Information Management Services,SME,Programme Expenditure
UK Statistics Family,Office for National Statistics,11/04/2022,Exp - Purchase Of Goods/Services - Contractors,Digital Delivery,La International,226102,"3,588.30",Information Management Services,SME,Programme Expenditure
UK Statistics Family,Office for National Statistics,11/04/2022,Telecoms,IT Operations,Cdw Limited,226107,237.6,Software Licenses,Large,Programme Expenditure
UK Statistics Family,Office for National Statistics,11/04/2022,End User Software And Hardware,IT Operations,Cdw Limited,226107,"110,854.80",Software Licenses,Large,Programme Expenditure
UK Statistics Family,Office for National Statistics,11/04/2022,Buildings Under Construction,Property London,Government Property Agency (GPA),226108,"154,004.40",Property Rental,Large,Programme Expenditure
UK Statistics Family,Office for National Statistics,11/04/2022,EXP - PURCHASE OF GOODS/SERVICES - DATA ACQUISITION,Data As A Service,HMRC.,226111,"518,050.09",Data Acquisition,Large,Programme Expenditure
UK Statistics Family,Office for National Statistics,12/04/2022,Surveys,Crime Statistics,Kantar Public UK Ltd.,226194,"897,121.50",Statistical Services,SME,Programme Expenditure
UK Statistics Family,Office for National Statistics,12/04/2022,Telecoms,Covid Infection Survey,Vodafone Corporate Ltd,226195,"18,228.00",Telecommunications,Large,Programme Expenditure
UK Statistics Family,Office for National Statistics,12/04/2022,Telecoms,Interviewer Management FiF,Vodafone Corporate Ltd,226195,"9,441.13",Telecommunications,Large,Programme Expenditure
UK Statistics Family,Office for National Statistics,12/04/2022,Telecoms,Interview Management IPS,Vodafone Corporate Ltd,226195,"2,507.27",Telecommunications,Large,Programme Expenditure
UK Statistics Family,Office for National Statistics,12/04/2022,Training & Development,Learning And Capability,Ernst & Young LLP,226201,32421.6,Training and Educational Services,Large,Programme Expenditure
UK Statistics Family,Office for National Statistics,12/04/2022,Exp - Purchase Of Goods/Services - Incentive Payments,Social Survey Transformation Newport,Sodexo Motivation Solutions U.K. ltd,226206,"50,840.31",Survey Response Incentive Vouchers,Large,Programme Expenditure
UK Statistics Family,Office for National Statistics,12/04/2022,Exp - Purchase Of Goods/Services - Incentive Payments,Survey Management,Sodexo Motivation Solutions U.K. ltd,226206,"3,345.59",Survey Response Incentive Vouchers,Large,Programme Expenditure
UK Statistics Family,Office for National Statistics,12/04/2022,Exp - Purchase Of Goods/Services - Incentive Payments,Survey Management,Sodexo Motivation Solutions U.K. ltd,226206,"3,336.14",Survey Response Incentive Vouchers,Large,Programme Expenditure
UK Statistics Family,Office for National Statistics,12/04/2022,Exp - Purchase Of Goods/Services - Incentive Payments,Survey Management,Sodexo Motivation Solutions U.K. ltd,226206,2397.93,Survey Response Incentive Vouchers,Large,Programme Expenditure
UK Statistics Family,Office for National Statistics,12/04/2022,Exp - Purchase Of Goods/Services - Incentive Payments,Survey Management,Sodexo Motivation Solutions U.K. ltd,226206,"2,367.62",Survey Response Incentive Vouchers,Large,Programme Expenditure
UK Statistics Family,Office for National Statistics,12/04/2022,Exp - Purchase Of Goods/Services - Incentive Payments,Survey Management,Sodexo Motivation Solutions U.K. ltd,226206,"43,705.01",Survey Response Incentive Vouchers,Large,Programme Expenditure
UK Statistics Family,Office for National Statistics,12/04/2022,Exp - Purchase Of Goods/Services - Incentive Payments,Survey Management,Sodexo Motivation Solutions U.K. ltd,226206,"47,639.05",Survey Response Incentive Vouchers,Large,Programme Expenditure
UK Statistics Family,Office for National Statistics,12/04/2022,Exp - Purchase Of Goods/Services - Incentive Payments,Social Survey Transformation Newport,Banner Group Ltd,226208,"126,600.00",Stationery,SME,Programme Expenditure
UK Statistics Family,Office for National Statistics,12/04/2022,End User Software And Hardware,IT Operations,Insight Direct,226212,"266,283.43",Software Licenses,Large,Programme Expenditure
UK Statistics Family,Office for National Statistics,12/04/2022,Exp - Short-Term Contract & Agency Staff - Full Cost,GSS Strategy Delivery,Talent International,226214,584.16,Information Management Services,SME,Programme Expenditure
UK Statistics Family,Office for National Statistics,12/04/2022,Exp - Purchase Of Goods/Services - Contractors,Business Architecture,Talent International,226214,"14,280.00",Information Management Services,SME,Programme Expenditure
UK Statistics Family,Office for National Statistics,12/04/2022,Exp - Purchase Of Goods/Services - Contractors,Testing,Talent International,226214,"7,140.00",Information Management Services,SME,Programme Expenditure
UK Statistics Family,Office for National Statistics,12/04/2022,Exp - Short-Term Contract & Agency Staff - Full Cost,Strategy And Engagement,Talent International,226214,1729.1,Information Management Services,SME,Programme Expenditure
UK Statistics Family,Office for National Statistics,12/04/2022,Exp - Short-Term Contract & Agency Staff - Full Cost,STRATEGY SYNTHESIS AND CO-ORDINATION,Talent International,226214,"5,434.56",Information Management Services,SME,Programme Expenditure
UK Statistics Family,Office for National Statistics,12/04/2022,Exp - Purchase Of Goods/Services - Contractors,IT Operations,Talent International,226214,780,Information Management Services,SME,Programme Expenditure
UK Statistics Family,Office for National Statistics,12/04/2022,Exp - Purchase Of Goods/Services - Contractors,Digital Delivery,Talent International,226214,"13,260.00",Information Management Services,SME,Programme Expenditure
UK Statistics Family,Office for National Statistics,12/04/2022,Exp - Purchase Of Goods/Services - Contractors,PPP Operations,Talent International,226214,"13,500.00",Information Management Services,SME,Programme Expenditure
UK Statistics Family,Office for National Statistics,12/04/2022,Training & Development,Learning And Capability,Peppy Health Ltd,226216,"29,880.00",Training and Educational Services,Large,Programme Expenditure
UK Statistics Family,Office for National Statistics,13/04/2022,Fixtures & Fittings At Cost - Additions,UKSA,HMRC.,226222,"26,893.40",Buildings Maintenance,Large,Programme Expenditure
UK Statistics Family,Office for National Statistics,13/04/2022,Exp - Purchase Of Goods/Services - IT Contractual Services,CDIO UNGP,Digital Modus Ltd,226224,"104,070.00",Information Management Services,SME,Programme Expenditure
UK Statistics Family,Office for National Statistics,13/04/2022,Surveys,Prices Division,Kantar Public UK Ltd.,226227,"220,323.80",Statistical Services,SME,Programme Expenditure
UK Statistics Family,Office for National Statistics,13/04/2022,Other Goods And Services,Recruitment ,Linkedin,226238,"68,917.20",Software Licenses,Large,Programme Expenditure
UK Statistics Family,Office for National Statistics,13/04/2022,Exp - Purchase Of Goods/Services - Contractors,2023 CENSUS DATA TRANSFORMATION,Certes Computing Ltd,226239,"9,180.36",Information Management Services,SME,Programme Expenditure
UK Statistics Family,Office for National Statistics,13/04/2022,Exp - Purchase Of Goods/Services - Contractors,Consultancy Management,Certes Computing Ltd,226239,"15,966.05",Information Management Services,SME,Programme Expenditure
UK Statistics Family,Office for National Statistics,13/04/2022,Exp - Purchase Of Goods/Services - Contractors,Security Advisory,Certes Computing Ltd,226239,"17,485.78",Information Management Services,SME,Programme Expenditure
UK Statistics Family,Office for National Statistics,13/04/2022,Exp - Purchase Of Goods/Services - Contractors,CLOUD ARCHITECTURE,Certes Computing Ltd,226239,"3,074.40",Information Management Services,SME,Programme Expenditure
UK Statistics Family,Office for National Statistics,13/04/2022,Exp - Purchase Of Goods/Services - Contractors,Strategy And Architecture,Certes Computing Ltd,226239,"19,734.83",Information Management Services,SME,Programme Expenditure
UK Statistics Family,Office for National Statistics,13/04/2022,Exp - Purchase Of Goods/Services - Contractors,Strategy And Architecture,Certes Computing Ltd,226239,"38,083.96",Information Management Services,SME,Programme Expenditure
UK Statistics Family,Office for National Statistics,13/04/2022,Exp - Purchase Of Goods/Services - Contractors,Tech Delivery Legacy Sp,Certes Computing Ltd,226239,"8,400.00",Information Management Services,SME,Programme Expenditure
UK Statistics Family,Office for National Statistics,13/04/2022,Exp - Purchase Of Goods/Services - Contractors,IT Operations,Certes Computing Ltd,226239,"16,656.05",Information Management Services,SME,Programme Expenditure
UK Statistics Family,Office for National Statistics,13/04/2022,Exp - Purchase Of Goods/Services - Contractors,IT Operations,Certes Computing Ltd,226239,"18,630.00",Information Management Services,SME,Programme Expenditure
UK Statistics Family,Office for National Statistics,13/04/2022,Exp - Purchase Of Goods/Services - Contractors,Digital Delivery,Certes Computing Ltd,226239,"33,395.04",Information Management Services,SME,Programme Expenditure
UK Statistics Family,Office for National Statistics,13/04/2022,Exp - Purchase Of Goods/Services - Contractors,Digital Delivery,Certes Computing Ltd,226239,"16,558.34",Information Management Services,SME,Programme Expenditure
UK Statistics Family,Office for National Statistics,13/04/2022,Exp - Purchase Of Goods/Services - Training & Development - Professional Membership Fees,Productivity Research And Professional Development,HM Treasury Group,226241,"78,845.00",Professional Membership Fees,Large,Programme Expenditure
UK Statistics Family,Office for National Statistics,13/04/2022,Exp - Purchase Of Goods And Services Consultants,Digital Media,Methods Business & Digital Technology Ltd,226250,"227,715.00",Information Management Services,Large,Programme Expenditure
UK Statistics Family,Office for National Statistics,13/04/2022,Exp - Purchase Of Goods/Services - Contractors,Digital Publishing,LA FOSSE ASSOCIATES LIMITED,226252,"31,875.00",Information Management Services,Large,Programme Expenditure
UK Statistics Family,Office for National Statistics,13/04/2022,Exp - Permanent UK Staff - PRP Voucher Payments,ONS Corporate Funds,Edenred (UK Group) Limited,226254,"82,550.00",Performance Reward Vouchers,Large,Programme Expenditure
UK Statistics Family,Office for National Statistics,13/04/2022,"ICT Outsourcing, Maintenance And Support",Researcher Support And Data Access ,Equiniti-TopLevel,226259,"46,725.12",Information Management Services,SME,Programme Expenditure
UK Statistics Family,Office for National Statistics,14/04/2022,Capitalised Specialist Contractors IT,Tech Delivery Data As A Platform,Kainos,226513,"49,670.86",Information Management Services,Large,Programme Expenditure
UK Statistics Family,Office for National Statistics,14/04/2022,Exp - Short-Term Contract & Agency Staff - Full Cost,Business Change Support,Concept Information Technology Ltd T/A Concept Resourcing,226514,"3,136.42",Information Management Services,Large,Programme Expenditure
UK Statistics Family,Office for National Statistics,14/04/2022,Exp - Short-Term Contract & Agency Staff - Full Cost,Productivity Research And Professional Development,Concept Information Technology Ltd T/A Concept Resourcing,226514,"3,136.42",Information Management Services,Large,Programme Expenditure
UK Statistics Family,Office for National Statistics,14/04/2022,Exp - Short-Term Contract & Agency Staff - Full Cost,Productivity Research And Professional Development,Concept Information Technology Ltd T/A Concept Resourcing,226514,"8,490.87",Information Management Services,Large,Programme Expenditure
UK Statistics Family,Office for National Statistics,14/04/2022,Exp - Short-Term Contract & Agency Staff - Full Cost,Productivity Research And Professional Development,Concept Information Technology Ltd T/A Concept Resourcing,226514,"7,701.22",Information Management Services,Large,Programme Expenditure
UK Statistics Family,Office for National Statistics,14/04/2022,Exp - Purchase Of Goods And Services Consultants,Productivity Research And Professional Development,Concept Information Technology Ltd T/A Concept Resourcing,226514,"2,472.06",Information Management Services,Large,Programme Expenditure
UK Statistics Family,Office for National Statistics,14/04/2022,Exp - Purchase Of Goods And Services Consultants,Productivity Research And Professional Development,Concept Information Technology Ltd T/A Concept Resourcing,226514,"4,118.54",Information Management Services,Large,Programme Expenditure
UK Statistics Family,Office for National Statistics,14/04/2022,Exp - Purchase Of Goods And Services Consultants,Productivity Research And Professional Development,Concept Information Technology Ltd T/A Concept Resourcing,226514,"2,979.60",Information Management Services,Large,Programme Expenditure
UK Statistics Family,Office for National Statistics,14/04/2022,Exp - Purchase Of Goods/Services - IT Contractual Services,IT Operations,Equiniti Limited,226515,"220,626.48",Information Management Services,Large,Programme Expenditure
UK Statistics Family,Office for National Statistics,14/04/2022,Exp - Purchase Of Goods/Services - Contractors,INTEGRATED DATA STRATEGY AND DELIVERY,La International,226517,690,Information Management Services,SME,Programme Expenditure
UK Statistics Family,Office for National Statistics,14/04/2022,Exp - Purchase Of Goods/Services - Contractors,Data Architecture,La International,226517,"24,489.48",Information Management Services,SME,Programme Expenditure
UK Statistics Family,Office for National Statistics,14/04/2022,Exp - Purchase Of Goods/Services - Contractors,Testing,LA FOSSE ASSOCIATES LIMITED,226519,"24,370.00",Information Management Services,Large,Programme Expenditure
UK Statistics Family,Office for National Statistics,14/04/2022,Exp - Purchase Of Goods/Services - Contractors,Testing,LA FOSSE ASSOCIATES LIMITED,226519,700,Information Management Services,Large,Programme Expenditure
UK Statistics Family,Office for National Statistics,14/04/2022,Exp - Purchase Of Goods/Services - Contractors,Consultancy Management,LA FOSSE ASSOCIATES LIMITED,226519,"19,800.00",Information Management Services,Large,Programme Expenditure
UK Statistics Family,Office for National Statistics,14/04/2022,Exp - Purchase Of Goods/Services - Contractors,Consultancy Management,LA FOSSE ASSOCIATES LIMITED,226519,550,Information Management Services,Large,Programme Expenditure
UK Statistics Family,Office for National Statistics,14/04/2022,Exp - Purchase Of Goods/Services - Contractors,INTEGRATED DATA STRATEGY AND DELIVERY,LA FOSSE ASSOCIATES LIMITED,226519,"18,420.00",Information Management Services,Large,Programme Expenditure
UK Statistics Family,Office for National Statistics,14/04/2022,Exp - Purchase Of Goods/Services - Contractors,BUSINESS STRATEGY PERFORMANCE AND PMO,LA FOSSE ASSOCIATES LIMITED,226519,"18,720.00",Information Management Services,Large,Programme Expenditure
UK Statistics Family,Office for National Statistics,14/04/2022,Exp - Purchase Of Goods/Services - Contractors,Tech Delivery Legacy Sp,LA FOSSE ASSOCIATES LIMITED,226519,900,Information Management Services,Large,Programme Expenditure
UK Statistics Family,Office for National Statistics,14/04/2022,Exp - Purchase Of Goods/Services - Contractors,Data Architecture,SmartSourcing Ltd,226520,"54,190.08",Information Management Services,SME,Programme Expenditure
UK Statistics Family,Office for National Statistics,14/04/2022,Exp - Purchase Of Goods/Services - Contractors,Data Architecture,SmartSourcing Ltd,226520,"14,384.64",Information Management Services,SME,Programme Expenditure
UK Statistics Family,Office for National Statistics,14/04/2022,Exp - Purchase Of Goods/Services - Contractors,Data Capability,Parity Resources Limited,226521,"4,355.26",Information Management Services,Large,Programme Expenditure
UK Statistics Family,Office for National Statistics,14/04/2022,Exp - Short-Term Contract & Agency Staff - Full Cost,Business Architecture Transformation And Statistical Strategy,Parity Resources Limited,226521,"9,269.40",Information Management Services,Large,Programme Expenditure
UK Statistics Family,Office for National Statistics,14/04/2022,Exp - Purchase Of Goods/Services - Contractors,Data Architecture,Parity Resources Limited,226521,"19,242.00",Information Management Services,Large,Programme Expenditure
UK Statistics Family,Office for National Statistics,14/04/2022,Exp - Purchase Of Goods/Services - Contractors,Data Architecture,Talent International,226522,"48,239.76",Information Management Services,SME,Programme Expenditure
UK Statistics Family,Office for National Statistics,19/04/2022,Surveys,Social Surveys Division,Natcen Social Research,226524,"812,807.78",Statistical Services,Large,Programme Expenditure
UK Statistics Family,Office for National Statistics,19/04/2022,Buildings Under Construction,Property Services,Vinci Construction UK Limited,226525,"103,875.61",Facilities Mangement Services,Large,Programme Expenditure
UK Statistics Family,Office for National Statistics,19/04/2022,Buildings Under Construction,Property Newport,Vinci Construction UK Limited,226525,"110,906.60",Facilities Mangement Services,Large,Programme Expenditure
UK Statistics Family,Office for National Statistics,19/04/2022,Buildings Under Construction,Property Newport,Vinci Construction UK Limited,226525,"37,198.97",Facilities Mangement Services,Large,Programme Expenditure
UK Statistics Family,Office for National Statistics,19/04/2022,Buildings Under Construction,Property Newport,Vinci Construction UK Limited,226525,"22,656.31",Facilities Mangement Services,Large,Programme Expenditure
UK Statistics Family,Office for National Statistics,19/04/2022,Buildings Under Construction,Property Newport,Vinci Construction UK Limited,226525,"3,745.01",Facilities Mangement Services,Large,Programme Expenditure
UK Statistics Family,Office for National Statistics,19/04/2022,Buildings Under Construction,Property Newport,Vinci Construction UK Limited,226525,"23,088.14",Facilities Mangement Services,Large,Programme Expenditure
UK Statistics Family,Office for National Statistics,19/04/2022,Buildings Under Construction,Property Newport,Vinci Construction UK Limited,226525,"60,078.01",Facilities Mangement Services,Large,Programme Expenditure
UK Statistics Family,Office for National Statistics,19/04/2022,Buildings Under Construction,Property Newport,Vinci Construction UK Limited,226525,"319,691.12",Facilities Mangement Services,Large,Programme Expenditure
UK Statistics Family,Office for National Statistics,19/04/2022,Buildings Under Construction,Property Newport,Vinci Construction UK Limited,226525,"60,112.28",Facilities Mangement Services,Large,Programme Expenditure
UK Statistics Family,Office for National Statistics,19/04/2022,Buildings Under Construction,Property Newport,Vinci Construction UK Limited,226525,"462,589.24",Facilities Mangement Services,Large,Programme Expenditure
UK Statistics Family,Office for National Statistics,19/04/2022,Buildings Under Construction,Property Titchfield,Vinci Construction UK Limited,226525,"142,439.26",Facilities Mangement Services,Large,Programme Expenditure
UK Statistics Family,Office for National Statistics,19/04/2022,Exp - Purchase Of Goods/Services - Training & Development - Professional Membership Fees,2023 CENSUS DATA TRANSFORMATION,HM Treasury Group,226529,"59,556.35",Professional Membership Fees,Large,Programme Expenditure
UK Statistics Family,Office for National Statistics,19/04/2022,Exp - Purchase Of Goods/Services - Incentive Payments,Survey Management,Sodexo Motivation Solutions U.K. ltd,226533,737.1,Survey Response Incentive Vouchers,Large,Programme Expenditure
UK Statistics Family,Office for National Statistics,19/04/2022,Exp - Purchase Of Goods/Services - Incentive Payments,Survey Management,Sodexo Motivation Solutions U.K. ltd,226533,778.2,Survey Response Incentive Vouchers,Large,Programme Expenditure
UK Statistics Family,Office for National Statistics,19/04/2022,Exp - Purchase Of Goods/Services - Incentive Payments,Survey Management,Sodexo Motivation Solutions U.K. ltd,226533,810.3,Survey Response Incentive Vouchers,Large,Programme Expenditure
UK Statistics Family,Office for National Statistics,19/04/2022,Exp - Purchase Of Goods/Services - Incentive Payments,Survey Management,Sodexo Motivation Solutions U.K. ltd,226533,588.3,Survey Response Incentive Vouchers,Large,Programme Expenditure
UK Statistics Family,Office for National Statistics,19/04/2022,Exp - Purchase Of Goods/Services - Incentive Payments,Covid Infection Survey,Sodexo Motivation Solutions U.K. ltd,226533,"111,813.42",Survey Response Incentive Vouchers,Large,Programme Expenditure
UK Statistics Family,Office for National Statistics,19/04/2022,Exp - Purchase Of Goods/Services - Incentive Payments,Survey Management,Sodexo Motivation Solutions U.K. ltd,226533,"6,551.40",Survey Response Incentive Vouchers,Large,Programme Expenditure
UK Statistics Family,Office for National Statistics,19/04/2022,Exp - Purchase Of Goods/Services - Contractors,Strategy And Architecture,LA FOSSE ASSOCIATES LIMITED,226534,"26,250.00",Information Management Services,Large,Programme Expenditure
UK Statistics Family,Office for National Statistics,19/04/2022,Exp - Purchase Of Goods/Services - Other ICT Costs Software,Survey Processing Centre,Insight Direct,226537,"88,348.48",Software Licenses,Large,Programme Expenditure
UK Statistics Family,Office for National Statistics,19/04/2022,Exp - Purchase Of Goods/Services - IT Contractual Services,Strategy And Architecture,Chaucer Group Ltd,226538,"13,305.60",Information Management Services,SME,Programme Expenditure
UK Statistics Family,Office for National Statistics,19/04/2022,Exp - Purchase Of Goods/Services - IT Contractual Services,Strategy And Architecture,Chaucer Group Ltd,226538,"21,859.20",Information Management Services,SME,Programme Expenditure
UK Statistics Family,Office for National Statistics,20/04/2022,Buildings Under Construction,Property Services,Vinci Construction UK Limited,226544,"84,487.97",Facilities Mangement Services,Large,Programme Expenditure
UK Statistics Family,Office for National Statistics,20/04/2022,Major Works Over 25K,Property Titchfield,Vinci Construction UK Limited,226544,"56,409.90",Facilities Mangement Services,Large,Programme Expenditure
UK Statistics Family,Office for National Statistics,20/04/2022,Major Works Over 25K,Property Titchfield,Vinci Construction UK Limited,226544,"60,915.00",Facilities Mangement Services,Large,Programme Expenditure
UK Statistics Family,Office for National Statistics,20/04/2022,Exp - Purchase Of Goods And Services Consultants,INTEGRATED DATA STRATEGY AND DELIVERY,Deloitte,226550,"2,137,363.20",Consultancy,Large,Programme Expenditure
UK Statistics Family,Office for National Statistics,20/04/2022,Rent Payable,Property Titchfield,Eaton Limited,226566,"29,623.20",Rental Charges,SME,Programme Expenditure
UK Statistics Family,Office for National Statistics,21/04/2022,Buildings Under Construction,Property Services,Vinci Construction UK Limited,226919,"103,875.61",Facilities Mangement Services,Large,Programme Expenditure
UK Statistics Family,Office for National Statistics,21/04/2022,Buildings Under Construction,Property Newport,Vinci Construction UK Limited,226919,"344,601.60",Facilities Mangement Services,Large,Programme Expenditure
UK Statistics Family,Office for National Statistics,21/04/2022,Buildings Under Construction,Property Newport,Vinci Construction UK Limited,226919,"269,771.22",Facilities Mangement Services,Large,Programme Expenditure
UK Statistics Family,Office for National Statistics,21/04/2022,Major Works Over 25K,Property Newport,Vinci Construction UK Limited,226919,"819,374.40",Facilities Mangement Services,Large,Programme Expenditure
UK Statistics Family,Office for National Statistics,21/04/2022,Software Licences At Cost - Additions,IT Operations,Computacenter (Uk) Limited,226924,"306,186.74",Software Licenses,Large,Programme Expenditure
UK Statistics Family,Office for National Statistics,21/04/2022,"ICT Outsourcing, Maintenance And Support",IT Operations,Computacenter (Uk) Limited,226924,"37,785.80",Software Licenses,Large,Programme Expenditure
UK Statistics Family,Office for National Statistics,21/04/2022,Exp - Purchase Of Goods/Services - IT Contractual Services,Digital Publishing,Armakuni Ltd,226930,"309,075.00",Information Management Services,SME,Programme Expenditure
UK Statistics Family,Office for National Statistics,21/04/2022,EXP - PURCHASE OF GOODS/SERVICES -  NON IT CONTRACTUAL PAYMENTS,Recruitment ,Cabinet Office,226934,"83,632.32",Fast Stream Services,Large,Programme Expenditure
UK Statistics Family,Office for National Statistics,21/04/2022,Exp - Seconded UK Staff - Basic Salary,FAST STREAM RECHARGES - CABINET OFFICE,Cabinet Office,226934,"422,791.00",Fast Stream Services,Large,Programme Expenditure
UK Statistics Family,Office for National Statistics,21/04/2022,Exp - Purchase Of Goods/Services - Other ICT Costs Software,Divisional Management,Granicus-Firmstep Limited,226937,"50,624.40",Software Licenses,Large,Programme Expenditure
UK Statistics Family,Office for National Statistics,22/04/2022,Exp - Purchase Of Goods/Services - Incentive Payments,Covid Infection Survey,Sodexo Motivation Solutions U.K. ltd,226947,"99,263.94",Survey Response Incentive Vouchers,Large,Programme Expenditure
UK Statistics Family,Office for National Statistics,25/04/2022,Surveys,Social Surveys Division,Natcen Social Research,227130,"30,294.60",Statistical Services,Large,Programme Expenditure
UK Statistics Family,Office for National Statistics,25/04/2022,Prepayments - Titchfield Postage Meter,Postage ,Pitney Bowes Ltd,227131,"187,898.39",Postage Services,Large,Programme Expenditure
UK Statistics Family,Office for National Statistics,25/04/2022,Exp - Purchase Of Goods/Services - Contractors,Tech Delivery Legacy Sp,La International,227132,"7,521.89",Information Management Services,SME,Programme Expenditure
UK Statistics Family,Office for National Statistics,25/04/2022,Exp - Purchase Of Goods/Services - Contractors,Tech Delivery Data As A Platform,La International,227132,"4,165.02",Information Management Services,SME,Programme Expenditure
UK Statistics Family,Office for National Statistics,25/04/2022,Exp - Purchase Of Goods/Services - Contractors,Tech Delivery Data As A Platform,La International,227132,"3,981.18",Information Management Services,SME,Programme Expenditure
UK Statistics Family,Office for National Statistics,25/04/2022,Exp - Purchase Of Goods/Services - Contractors,IT Applications,La International,227132,"11,085.84",Information Management Services,SME,Programme Expenditure
UK Statistics Family,Office for National Statistics,25/04/2022,Exp - Purchase Of Goods/Services - Contractors,Digital Delivery,La International,227132,"2,152.98",Information Management Services,SME,Programme Expenditure
UK Statistics Family,Office for National Statistics,26/04/2022,Exp - Short-Term Contract & Agency Staff - Full Cost,GSS Strategy Delivery,Malikshaw Interim & Executive,227266,213.98,Information Management Services,SME,Programme Expenditure
UK Statistics Family,Office for National Statistics,26/04/2022,Exp - Short-Term Contract & Agency Staff - Full Cost,Data Architecture,Malikshaw Interim & Executive,227266,"10,343.48",Information Management Services,SME,Programme Expenditure
UK Statistics Family,Office for National Statistics,26/04/2022,Exp - Purchase Of Goods/Services - Contractors,Data Architecture,Malikshaw Interim & Executive,227266,13977.6,Information Management Services,SME,Programme Expenditure
UK Statistics Family,Office for National Statistics,26/04/2022,Exp - Purchase Of Goods/Services - Contractors,Digital Delivery,Malikshaw Interim & Executive,227266,"21,472.80",Information Management Services,SME,Programme Expenditure
UK Statistics Family,Office for National Statistics,26/04/2022,Marketing & Media,Stakeholder Engagement And Comms,M&C Saatchi UK Ltd,227270,"153,634.34",Marketing and Media Services,Large,Programme Expenditure
UK Statistics Family,Office for National Statistics,27/04/2022,Exp - Purchase Of Goods/Services - IT Contractual Services,CLOUD ARCHITECTURE,CTS (Cloud Technology Solutions Ltd),227285,"143,910.00",Information Management Services,Large,Programme Expenditure
UK Statistics Family,Office for National Statistics,27/04/2022,Exp - Purchase Of Goods/Services - IT Contractual Services,CDIO UNGP,CTS (Cloud Technology Solutions Ltd),227285,"19,119.60",Information Management Services,Large,Programme Expenditure
UK Statistics Family,Office for National Statistics,27/04/2022,Exp - Purchase Of Goods/Services - IT Contractual Services,Digital Delivery,Methods Business & Digital Technology Ltd,227289,"45,510.00",Information Management Services,Large,Programme Expenditure
UK Statistics Family,Office for National Statistics,27/04/2022,Exp - Purchase Of Goods/Services - Contractors,Testing,Parity Resources Limited,227292,"3,959.26",Information Management Services,Large,Programme Expenditure
UK Statistics Family,Office for National Statistics,27/04/2022,Exp - Purchase Of Goods/Services - Contractors,Covid Infection Survey,Parity Resources Limited,227292,"1,796.28",Information Management Services,Large,Programme Expenditure
UK Statistics Family,Office for National Statistics,27/04/2022,Exp - Short-Term Contract & Agency Staff - Full Cost,Recruitment ,Parity Resources Limited,227292,"1,465.20",Information Management Services,Large,Programme Expenditure
UK Statistics Family,Office for National Statistics,27/04/2022,Exp - Purchase Of Goods/Services - Contractors,Security Advisory,Parity Resources Limited,227292,"5,946.62",Information Management Services,Large,Programme Expenditure
UK Statistics Family,Office for National Statistics,27/04/2022,Exp - Purchase Of Goods/Services - Contractors,Strategy And Architecture,Parity Resources Limited,227292,899.99,Information Management Services,Large,Programme Expenditure
UK Statistics Family,Office for National Statistics,27/04/2022,Exp - Purchase Of Goods/Services - Contractors,Strategy And Architecture,Parity Resources Limited,227292,"4,210.50",Information Management Services,Large,Programme Expenditure
UK Statistics Family,Office for National Statistics,27/04/2022,Exp - Purchase Of Goods/Services - Contractors,IT Applications,Parity Resources Limited,227292,"8,483.94",Information Management Services,Large,Programme Expenditure
UK Statistics Family,Office for National Statistics,27/04/2022,Exp - Purchase Of Goods/Services - Contractors,IT Operations,Parity Resources Limited,227292,"14,075.70",Information Management Services,Large,Programme Expenditure
UK Statistics Family,Office for National Statistics,27/04/2022,Exp - Purchase Of Goods/Services - Contractors,Digital Delivery,Parity Resources Limited,227292,"10,094.40",Information Management Services,Large,Programme Expenditure
UK Statistics Family,Office for National Statistics,27/04/2022,Other Goods And Services,Programme Other,Cabinet Office,227293,"9,724.82",Fast Stream Services,Large,Programme Expenditure
UK Statistics Family,Office for National Statistics,27/04/2022,Other Goods And Services,Recruitment ,Cabinet Office,227293,394.8,Fast Stream Services,Large,Programme Expenditure
UK Statistics Family,Office for National Statistics,27/04/2022,Other Goods And Services,Recruitment ,Cabinet Office,227293,"1,138.20",Fast Stream Services,Large,Programme Expenditure
UK Statistics Family,Office for National Statistics,27/04/2022,Training & Development,Learning And Capability,Cabinet Office,227293,"27,940.00",Fast Stream Services,Large,Programme Expenditure
UK Statistics Family,Office for National Statistics,27/04/2022,Exp - Purchase Of Goods/Services - Contractors,Tech Delivery Next Gen IT And Infrastructure,Talent International,227295,"21,599.76",Information Management Services,SME,Programme Expenditure
UK Statistics Family,Office for National Statistics,27/04/2022,Exp - Purchase Of Goods/Services - Contractors,Data As A Service,Talent International,227295,21600,Information Management Services,SME,Programme Expenditure
UK Statistics Family,Office for National Statistics,27/04/2022,Specialist User Software And Hardware,Census & Soc Methodology Dd,University of Southampton,227298,"27,662.40",Information Management Services,SME,Programme Expenditure
UK Statistics Family,Office for National Statistics,27/04/2022,FM Contract Payments,Vinci Payments,Vinci Construction UK Limited,227299,"159,579.34",Facilities Mangement Services,Large,Programme Expenditure
UK Statistics Family,Office for National Statistics,07/04/2022,Stationery,Lodgecard,Royal Bank of Scotland,30003409,"11,635.41",Multiple Procurement Card Purchases  - Stationery ,Large,Programme Expenditure
UK Statistics Family,Office for National Statistics,07/04/2022,Other Goods And Services,GPC,Royal Bank of Scotland,30003409,"88,203.52",Multiple Procurement Card Purchases - other goods/services  ,Large,Programme Expenditure
UK Statistics Family,Office for National Statistics,07/04/2022,Travel And Subsistence,Car Hire,Royal Bank of Scotland,30003409,"6,211.46",Multiple Procurement Card Purchases - Vehicle Hire  ,Large,Programme Expenditure
UK Statistics Family,Office for National Statistics,12/04/2022,Other Goods And Services,Policy Secretariat,United Nations Economic Commission for Europe,30003411,"80,478.70",Modernising Statistical Production Contribution,Large,Programme Expenditure
UK Statistics Family,Office for National Statistics,19/04/2022,Exp - Purchase Of Goods/Services - Incentive Payments,Covid Infection Survey,Sodexo Motivation Solutions U.K. ltd,30003412,"2,015,486.58",Survey Response Incentive Vouchers,Large,Programme Expenditure
UK Statistics Family,Office for National Statistics,20/04/2022,Exp - Purchase Of Goods/Services - Incentive Payments,Covid Infection Survey,Sodexo Motivation Solutions U.K. ltd,30003414,"1,690,602.97",Survey Response Incentive Vouchers,Large,Programme Expenditure
UK Statistics Family,Office for National Statistics,20/04/2022,Other Goods And Services,Crime Income And Wealth,Textkernel,30003415,"55,150.00",Data Acquisition,SME,Programme Expenditure
UK Statistics Family,Office for National Statistics,20/04/2022,End User Software And Hardware,IT Operations,Pluralsight,30003416,"53,680.44",Software Licenses,Large,Programme Expenditure
UK Statistics Family,Office for National Statistics,21/04/2022,Exp - Purchase Of Goods/Services - Incentive Payments,Covid Infection Survey,Sodexo Motivation Solutions U.K. ltd,30003418,"1,440,938.15",Survey Response Incentive Vouchers,Large,Programme Expenditure
UK Statistics Family,Office for National Statistics,27/04/2022,Electricity,Property Newport,Edf Energy,30003423,"27,089.70",Utility Charges,Large,Programme Expenditure
UK Statistics Family,Office for National Statistics,27/04/2022,Surveys,Covid Infection Survey,IQVIA Limited,30003425,"16,920,000.00",Statistical Services,Large,Programme Expenditure
UK Statistics Family,Office for National Statistics,28/04/2022,Surveys,Covid Infection Survey,IQVIA Limited,30003432,"4,053,797.80",Statistical Services,Large,Programme Expenditure
UK Statistics Family,Office for National Statistics,28/04/2022,Surveys,Covid Infection Survey,IQVIA Limited,30003432,"48,035.88",Statistical Services,Large,Programme Expenditure
UK Statistics Family,Office for National Statistics,28/04/2022,Telecoms,IT Operations,Cdw Limited,30003435,"29,560.80",Software Licenses,Large,Programme Expenditure
UK Statistics Family,Office for National Statistics,28/04/2022,End User Software And Hardware,IT Operations,Cdw Limited,30003435,"5,976.00",Software Licenses,Large,Programme Expenditure
UK Statistics Family,Office for National Statistics,28/04/2022,Surveys,Crime Statistics,Kantar Public UK Ltd.,30003437,"344,334.00",Statistical Services,SME,Programme Expenditure
UK Statistics Family,Office for National Statistics,28/04/2022,Surveys,Crime Statistics,Kantar Public UK Ltd.,30003438,"109,941.60",Statistical Services,SME,Programme Expenditure
UK Statistics Family,Office for National Statistics,29/04/2022,Exp - Purchase Of Goods/Services - Incentive Payments,Covid Infection Survey,Sodexo Motivation Solutions U.K. ltd,30003442,"1,536,481.00",Survey Response Incentive Vouchers,Large,Programme Expenditure
UK Statistics Family,Office for National Statistics,29/04/2022,IT (Owned) At Cost - Additions,IT Operations,Scc,30003449,"446,596.02",Software Licenses,Large,Programme Expenditure
UK Statistics Family,Office for National Statistics,29/04/2022,Exp - Purchase Of Goods/Services - IT Contractual Services,IT Operations,Insight Direct,30003452,"148,136.10",Software Licenses,Large,Programme Expenditure
,,,,,,,"51,619,182.58",,,
